[Event "Estonian Chess Championship 2022"]
[Site "Tallinn, Paul Keres Chess House, Estonia"]
[Date "2022.12.13"]
[Round "4.5"]
[White "Volodin, Aleksandr"]
[Black "Seeman, Tarvo"]
[Result "1/2-1/2"]
[TimeControl "90 minutes for first 40 moves and 15 min. for the rest of the game with 30 sec. increment from move 1"]
[WhiteTitle "GM"]
[BlackTitle "IM"]
[WhiteFideId "4501950"]
[BlackFideId "4500547"]
[WhiteElo "2440"]
[BlackElo "2405"]

1. d4 {

[%clk 01:26:26]

} {

[%emt 00:04:32]

} Nf6 {

[%clk 01:30:53]

} {

[%emt 00:00:07]

} 2. c4 {

[%clk 01:26:29]

} {

[%emt 00:00:26]

} g6 {

[%clk 01:31:16]

} {

[%emt 00:00:07]

} 3. Nc3 {

[%clk 01:26:20]

} {

[%emt 00:00:40]

} Bg7 {

[%clk 01:31:39]

} {

[%emt 00:00:07]

} 4. e4 {

[%clk 01:26:02]

} {

[%emt 00:00:48]

} d6 {

[%clk 01:32:03]

} {

[%emt 00:00:06]

} 5. f3 {

[%clk 01:24:48]

} {

[%emt 00:01:44]

} O-O {

[%clk 01:29:29]

} {

[%emt 00:03:04]

} 6. Be3 {

[%clk 01:24:52]

} {

[%emt 00:00:27]

} Nbd7 {

[%clk 01:29:38]

} {

[%emt 00:00:21]

} 7. Qd2 {

[%clk 01:24:35]

} {

[%emt 00:00:47]

} c5 {

[%clk 01:29:19]

} {

[%emt 00:00:49]

} 8. Nge2 {

[%clk 01:24:02]

} {

[%emt 00:01:03]

} a6 {

[%clk 01:27:32]

} {

[%emt 00:02:17]

} 9. Rd1 {

[%clk 01:20:24]

} {

[%emt 00:04:08]

} Qa5 {

[%clk 01:17:48]

} {

[%emt 00:10:14]

} 10. Nc1 {

[%clk 01:19:40]

} {

[%emt 00:01:15]

} cxd4 {

[%clk 01:16:38]

} {

[%emt 00:01:40]

} 11. Bxd4 {

[%clk 01:20:03]

} {

[%emt 00:00:06]

} Ne5 {

[%clk 01:16:03]

} {

[%emt 00:01:04]

} 12. Nb3 {

[%clk 01:06:14]

} {

[%emt 00:14:20]

} Qb4 {

[%clk 01:02:59]

} {

[%emt 00:13:34]

} 13. Qc2 {

[%clk 00:42:24]

} {

[%emt 00:24:20]

} Nc6 {

[%clk 00:55:01]

} {

[%emt 00:08:28]

} 14. Bf2 {

[%clk 00:42:32]

} {

[%emt 00:00:22]

} Nd7 {

[%clk 00:54:04]

} {

[%emt 00:01:27]

} 15. Be2 {

[%clk 00:40:06]

} {

[%emt 00:02:56]

} Nc5 {

[%clk 00:47:02]

} {

[%emt 00:07:31]

} 16. O-O {

[%clk 00:39:54]

} {

[%emt 00:00:43]

} Be6 {

[%clk 00:40:25]

} {

[%emt 00:07:07]

} 17. Nd5 {

[%clk 00:32:11]

} {

[%emt 00:08:13]

} Bxd5 {

[%clk 00:40:23]

} {

[%emt 00:00:32]

} 18. exd5 {

[%clk 00:31:34]

} {

[%emt 00:01:08]

} Nxb3 {

[%clk 00:36:15]

} {

[%emt 00:04:37]

} 19. dxc6 {

[%clk 00:26:41]

} {

[%emt 00:05:24]

} Nc5 {

[%clk 00:35:34]

} {

[%emt 00:01:10]

} 20. a3 {

[%clk 00:22:49]

} {

[%emt 00:04:24]

} Qxb2 {

[%clk 00:32:56]

} {

[%emt 00:03:07]

} 21. Qxb2 {

[%clk 00:21:30]

} {

[%emt 00:01:49]

} Bxb2 {

[%clk 00:33:18]

} {

[%emt 00:00:07]

} 22. Bxc5 {

[%clk 00:10:41]

} {

[%emt 00:11:20]

} dxc5 {

[%clk 00:33:35]

} {

[%emt 00:00:12]

} 23. cxb7 {

[%clk 00:10:58]

} {

[%emt 00:00:13]

} Ra7 {

[%clk 00:28:44]

} {

[%emt 00:05:21]

} 24. Rd7 {

[%clk 00:11:23]

} {

[%emt 00:00:05]

} Rb8 {

[%clk 00:28:51]

} {

[%emt 00:00:22]

} 25. Rb1 {

[%clk 00:11:32]

} {

[%emt 00:00:23]

} Raxb7 {

[%clk 00:28:45]

} {

[%emt 00:00:36]

} 26. Rxb7 {

[%clk 00:12:00]

} {

[%emt 00:00:02]

} Rxb7 {

[%clk 00:29:06]

} {

[%emt 00:00:09]

} 27. Kf1 {

[%clk 00:12:29]

} Kf8 {

[%clk 00:23:25]

} {

[%emt 00:06:12]

} 28. f4 {

[%clk 00:12:34]

} {

[%emt 00:00:25]

} e6 {

[%clk 00:20:48]

} {

[%emt 00:03:06]

} 29. Bf3 {

[%clk 00:12:14]

} {

[%emt 00:00:52]

} Rb8 {

[%clk 00:19:10]

} {

[%emt 00:02:07]

} 30. Ke2 {

[%clk 00:12:37]

} {

[%emt 00:00:08]

} Ke7 {

[%clk 00:19:07]

} {

[%emt 00:00:33]

} 31. Be4 {

[%clk 00:12:59]

} {

[%emt 00:00:08]

} h5 {

[%clk 00:15:09]

} {

[%emt 00:04:27]

} 32. g3 {

[%clk 00:10:49]

} {

[%emt 00:02:41]

} a5 {

[%clk 00:13:04]

} {

[%emt 00:02:34]

} 33. Bc6 {

[%clk 00:09:33]

} {

[%emt 00:01:47]

} Rb6 {

[%clk 00:10:30]

} {

[%emt 00:03:05]

} 34. Ba4 {

[%clk 00:08:13]

} {

[%emt 00:01:50]

} Rb8 {

[%clk 00:07:59]

} {

[%emt 00:03:00]

} 35. Kf3 {

[%clk 00:06:59]

} {

[%emt 00:01:42]

} Kf6 {

[%clk 00:06:09]

} {

[%emt 00:02:23]

} 36. h4 {

[%clk 00:06:13]

} {

[%emt 00:01:16]

} Ke7 {

[%clk 00:05:41]

} {

[%emt 00:00:59]

} 37. Ke2 {

[%clk 00:04:35]

} {

[%emt 00:02:07]

} Rb6 {

[%clk 00:05:07]

} {

[%emt 00:01:04]

} 38. Kf3 {

[%clk 00:03:39]

} {

[%emt 00:01:26]

} Rb7 {

[%clk 00:04:20]

} {

[%emt 00:01:17]

} 39. Ke2 {

[%clk 00:04:03]

} {

[%emt 00:00:06]

} Rb8 {

[%clk 00:03:46]

} {

[%emt 00:01:04]

} 40. Bd1 {

[%clk 00:16:10]

} {

[%emt 00:03:21]

} Kd6 {

[%clk 00:16:59]

} {

[%emt 00:02:17]

} 41. Bc2 {

[%clk 00:16:25]

} {

[%emt 00:00:16]

} Kc7 {

[%clk 00:16:22]

} {

[%emt 00:01:07]

} 42. Ba4 {

[%clk 00:13:33]

} {

[%emt 00:03:22]

} Kd6 {

[%clk 00:15:00]

} {

[%emt 00:01:52]

} 43. Kd3 {

[%clk 00:12:46]

} {

[%emt 00:01:16]

} Kc7 {

[%clk 00:14:55]

} {

[%emt 00:00:35]

} 44. Kc2 {

[%clk 00:12:08]

} {

[%emt 00:01:09]

} Bxa3 {

[%clk 00:13:56]

} {

[%emt 00:01:29]

} 45. Rxb8 {

[%clk 00:12:08]

} {

[%emt 00:00:29]

} Kxb8 {

[%clk 00:14:23]

} {

[%emt 00:00:03]

} 46. Be8 {

[%clk 00:12:32]

} {

[%emt 00:00:06]

} Kc7 {

[%clk 00:14:06]

} {

[%emt 00:00:48]

} 47. Bxf7 {

[%clk 00:12:01]

} {

[%emt 00:01:00]

} Kd6 {

[%clk 00:14:28]

} {

[%emt 00:00:08]

} 48. Bxg6 {

[%clk 00:11:54]

} {

[%emt 00:00:37]

} Bb4 {

[%clk 00:14:56]

} {

[%emt 00:00:03]

} 49. Bxh5 {

[%clk 00:08:07]

} {

[%emt 00:04:17]

} Be1 {

[%clk 00:15:21]

} {

[%emt 00:00:05]

} 50. g4 {

[%clk 00:08:09]

} {

[%emt 00:00:28]

} Bxh4 {

[%clk 00:15:43]

} {

[%emt 00:00:08]

} 51. g5 {

[%clk 00:07:01]

} {

[%emt 00:01:38]

} Bf2 {

[%clk 00:13:19]

} {

[%emt 00:02:53]

} 52. Bg4 {

[%clk 00:06:50]

} {

[%emt 00:00:42]

} Be3 {

[%clk 00:10:55]

} {

[%emt 00:02:54]

} 53. g6 {

[%clk 00:05:48]

} {

[%emt 00:01:32]

} Bd4 {

[%clk 00:11:19]

} {

[%emt 00:00:06]

} 54. Kb3 {

[%clk 00:05:58]

} {

[%emt 00:00:21]

} Ke7 {

[%clk 00:11:35]

} {

[%emt 00:00:14]

} 55. Ka4 {

[%clk 00:06:06]

} {

[%emt 00:00:22]

} Kf6 {

[%clk 00:11:55]

} {

[%emt 00:00:09]

} 56. Kxa5 {

[%clk 00:06:18]

} {

[%emt 00:00:18]

} Kxg6 {

[%clk 00:11:58]

} {

[%emt 00:00:26]

} 1/2-1/2

[Event "Estonian Chess Championship 2022"]
[Site "Tallinn, Paul Keres Chess House, Estonia"]
[Date "2022.12.14"]
[Round "5.2"]
[White "Rychagov, Nikita"]
[Black "Volodin, Aleksandr"]
[Result "0-1"]
[TimeControl "90 minutes for first 40 moves and 15 min. for the rest of the game with 30 sec. increment from move 1"]
[BlackTitle "GM"]
[WhiteFideId "4508394"]
[BlackFideId "4501950"]
[WhiteElo "2180"]
[BlackElo "2440"]

1. e4 {

[%clk 01:30:58]

} {

[%emt 00:00:02]

} c5 {

[%clk 01:30:30]

} {

[%emt 00:00:30]

} 2. Nf3 {

[%clk 01:31:24]

} {

[%emt 00:00:04]

} d6 {

[%clk 01:30:43]

} {

[%emt 00:00:17]

} 3. d4 {

[%clk 01:31:51]

} {

[%emt 00:00:04]

} cxd4 {

[%clk 01:31:08]

} {

[%emt 00:00:05]

} 4. Nxd4 {

[%clk 01:32:19]

} {

[%emt 00:00:03]

} Nf6 {

[%clk 01:30:55]

} {

[%emt 00:00:42]

} 5. Nc3 {

[%clk 01:32:46]

} {

[%emt 00:00:03]

} a6 {

[%clk 01:31:19]

} {

[%emt 00:00:06]

} 6. Be3 {

[%clk 01:33:07]

} {

[%emt 00:00:09]

} e5 {

[%clk 01:31:27]

} {

[%emt 00:00:21]

} 7. Nb3 {

[%clk 01:33:32]

} {

[%emt 00:00:05]

} Be6 {

[%clk 01:31:43]

} {

[%emt 00:00:14]

} 8. f3 {

[%clk 01:33:56]

} {

[%emt 00:00:06]

} Be7 {

[%clk 01:32:03]

} {

[%emt 00:00:09]

} 9. Qd2 {

[%clk 01:34:21]

} {

[%emt 00:00:07]

} O-O {

[%clk 01:32:12]

} {

[%emt 00:00:20]

} 10. O-O-O {

[%clk 01:34:41]

} {

[%emt 00:00:11]

} Nbd7 {

[%clk 01:32:33]

} {

[%emt 00:00:09]

} 11. g4 {

[%clk 01:35:03]

} {

[%emt 00:00:08]

} b5 {

[%clk 01:32:52]

} {

[%emt 00:00:11]

} 12. g5 {

[%clk 01:35:29]

} {

[%emt 00:00:04]

} Nh5 {

[%clk 01:33:16]

} {

[%emt 00:00:06]

} 13. Kb1 {

[%clk 01:35:40]

} {

[%emt 00:00:19]

} Nb6 {

[%clk 01:24:01]

} {

[%emt 00:09:45]

} 14. Na5 {

[%clk 01:35:47]

} {

[%emt 00:00:24]

} Qc7 {

[%clk 01:23:59]

} {

[%emt 00:00:31]

} 15. a3 {

[%clk 01:35:50]

} {

[%emt 00:00:27]

} Rab8 {

[%clk 01:23:41]

} {

[%emt 00:00:47]

} 16. Nd5 {

[%clk 01:35:45]

} {

[%emt 00:00:36]

} Nxd5 {

[%clk 01:19:49]

} {

[%emt 00:04:22]

} 17. exd5 {

[%clk 01:35:41]

} {

[%emt 00:00:34]

} Bd7 {

[%clk 01:16:26]

} {

[%emt 00:03:53]

} 18. Rg1 {

[%clk 01:30:32]

} {

[%emt 00:05:39]

} f5 {

[%clk 01:06:08]

} {

[%emt 00:10:48]

} 19. g6 {

[%clk 01:29:31]

} {

[%emt 00:01:31]

} Bf6 {

[%clk 01:03:53]

} {

[%emt 00:02:45]

} 20. gxh7+ {

[%clk 01:29:52]

} {

[%emt 00:00:09]

} Kh8 {

[%clk 01:03:58]

} {

[%emt 00:00:25]

} 21. Rc1 {

[%clk 01:21:36]

} {

[%emt 00:08:47]

} Bd8 {

[%clk 00:55:34]

} {

[%emt 00:08:54]

} 22. Nb3 {

[%clk 01:21:07]

} {

[%emt 00:00:59]

} a5 {

[%clk 00:51:33]

} {

[%emt 00:04:30]

} 23. c4 {

[%clk 01:19:12]

} {

[%emt 00:02:25]

} f4 {

[%clk 00:46:12]

} {

[%emt 00:05:51]

} 24. Bf2 {

[%clk 01:18:29]

} {

[%emt 00:01:13]

} Bf5+ {

[%clk 00:46:38]

} {

[%emt 00:00:04]

} 25. Ka1 {

[%clk 01:15:32]

} {

[%emt 00:03:26]

} b4 {

[%clk 00:46:28]

} {

[%emt 00:00:40]

} 26. c5 {

[%clk 01:10:36]

} {

[%emt 00:05:26]

} bxa3 {

[%clk 00:45:52]

} {

[%emt 00:01:06]

} 27. cxd6 {

[%clk 01:10:44]

} {

[%emt 00:00:21]

} Qb7 {

[%clk 00:43:22]

} {

[%emt 00:03:00]

} 28. Bc4 {

[%clk 01:10:39]

} {

[%emt 00:00:35]

} axb2+ {

[%clk 00:40:39]

} {

[%emt 00:03:13]

} 29. Kxb2 {

[%clk 01:10:49]

} {

[%emt 00:00:19]

} a4 {

[%clk 00:40:51]

} {

[%emt 00:00:18]

} 30. Ra1 {

[%clk 01:11:14]

} {

[%emt 00:00:06]

} Qd7 {

[%clk 00:40:47]

} {

[%emt 00:00:34]

} 31. Rgc1 {

[%clk 01:10:08]

} {

[%emt 00:01:37]

} Bf6 {

[%clk 00:40:58]

} {

[%emt 00:00:18]

} 32. Rc3 {

[%clk 01:10:25]

} {

[%emt 00:00:12]

} Rfc8 {

[%clk 00:41:00]

} {

[%emt 00:00:28]

} 33. Qd1 {

[%clk 01:10:35]

} {

[%emt 00:00:21]

} 0-1

[Event "Estonian Chess Championship 2022"]
[Site "Tallinn, Paul Keres Chess House, Estonia"]
[Date "2022.12.14"]
[Round "5.3"]
[White "Sirosh, Ilja"]
[Black "Kiik, Kalle"]
[Result "1/2-1/2"]
[TimeControl "90 minutes for first 40 moves and 15 min. for the rest of the game with 30 sec. increment from move 1"]
[WhiteTitle "IM"]
[BlackTitle "IM"]
[WhiteFideId "4500458"]
[BlackFideId "4500075"]
[WhiteElo "2386"]
[BlackElo "2369"]

1. d4 {

[%clk 01:30:57]

} {

[%emt 00:00:02]

} d6 {

[%clk 01:30:20]

} {

[%emt 00:00:40]

} 2. e4 {

[%clk 01:31:20]

} {

[%emt 00:00:07]

} Nf6 {

[%clk 01:30:34]

} {

[%emt 00:00:15]

} 3. Nc3 {

[%clk 01:31:45]

} {

[%emt 00:00:06]

} e5 {

[%clk 01:30:52]

} {

[%emt 00:00:11]

} 4. dxe5 {

[%clk 01:32:09]

} {

[%emt 00:00:08]

} dxe5 {

[%clk 01:31:14]

} {

[%emt 00:00:08]

} 5. Qxd8+ {

[%clk 01:32:36]

} {

[%emt 00:00:04]

} Kxd8 {

[%clk 01:31:34]

} {

[%emt 00:00:08]

} 6. Bc4 {

[%clk 01:33:02]

} {

[%emt 00:00:04]

} Ke8 {

[%clk 01:30:40]

} {

[%emt 00:01:23]

} 7. f4 {

[%clk 01:32:09]

} {

[%emt 00:01:25]

} Bb4 {

[%clk 01:26:32]

} {

[%emt 00:04:37]

} 8. Bd3 {

[%clk 01:28:10]

} {

[%emt 00:04:29]

} Nbd7 {

[%clk 01:16:24]

} {

[%emt 00:10:38]

} 9. Nf3 {

[%clk 01:15:14]

} {

[%emt 00:13:27]

} Bd6 {

[%clk 01:13:18]

} {

[%emt 00:03:34]

} 10. Bd2 {

[%clk 01:10:38]

} {

[%emt 00:05:07]

} c6 {

[%clk 01:08:47]

} {

[%emt 00:05:01]

} 11. g3 {

[%clk 00:42:56]

} {

[%emt 00:28:12]

} h6 {

[%clk 00:59:03]

} {

[%emt 00:10:14]

} 12. O-O-O {

[%clk 00:41:19]

} {

[%emt 00:02:07]

} Ke7 {

[%clk 00:53:47]

} {

[%emt 00:05:45]

} 13. h3 {

[%clk 00:29:12]

} {

[%emt 00:12:37]

} Re8 {

[%clk 00:46:58]

} {

[%emt 00:07:19]

} 14. Rde1 {

[%clk 00:28:22]

} {

[%emt 00:01:21]

} b5 {

[%clk 00:33:04]

} {

[%emt 00:14:24]

} 15. g4 {

[%clk 00:22:59]

} {

[%emt 00:05:52]

} Kd8 {

[%clk 00:29:50]

} {

[%emt 00:03:43]

} 16. f5 {

[%clk 00:20:17]

} {

[%emt 00:03:13]

} a5 {

[%clk 00:27:38]

} {

[%emt 00:02:42]

} 17. Nd1 {

[%clk 00:18:31]

} {

[%emt 00:02:16]

} a4 {

[%clk 00:26:53]

} {

[%emt 00:01:15]

} 18. Nh2 {

[%clk 00:12:44]

} {

[%emt 00:06:17]

} Nc5 {

[%clk 00:23:48]

} {

[%emt 00:03:35]

} 19. h4 {

[%clk 00:13:06]

} {

[%emt 00:00:08]

} Nxd3+ {

[%clk 00:18:37]

} {

[%emt 00:05:40]

} 20. cxd3 {

[%clk 00:13:35]

} {

[%emt 00:00:01]

} Nd7 {

[%clk 00:18:39]

} {

[%emt 00:00:28]

} 21. Ref1 {

[%clk 00:13:04]

} {

[%emt 00:01:01]

} f6 {

[%clk 00:18:09]

} {

[%emt 00:00:59]

} 22. g5 {

[%clk 00:13:25]

} {

[%emt 00:00:10]

} h5 {

[%clk 00:15:40]

} {

[%emt 00:02:59]

} 23. gxf6 {

[%clk 00:12:15]

} {

[%emt 00:01:41]

} gxf6 {

[%clk 00:16:01]

} {

[%emt 00:00:08]

} 24. Rhg1 {

[%clk 00:12:36]

} {

[%emt 00:00:09]

} a3 {

[%clk 00:12:41]

} {

[%emt 00:03:50]

} 25. b3 {

[%clk 00:12:42]

} {

[%emt 00:00:24]

} Rh8 {

[%clk 00:09:53]

} {

[%emt 00:03:17]

} 26. Rg6 {

[%clk 00:12:07]

} {

[%emt 00:01:06]

} Bf8 {

[%clk 00:09:08]

} {

[%emt 00:01:14]

} 27. Rfg1 {

[%clk 00:12:20]

} {

[%emt 00:00:17]

} Ke8 {

[%clk 00:09:17]

} {

[%emt 00:00:21]

} 28. Kc2 {

[%clk 00:09:37]

} {

[%emt 00:03:13]

} Kf7 {

[%clk 00:08:52]

} {

[%emt 00:00:54]

} 1/2-1/2

[Event "Estonian Chess Championship 2022"]
[Site "Tallinn, Paul Keres Chess House, Estonia"]
[Date "2022.12.14"]
[Round "5.4"]
[White "Kulaots, Kaido"]
[Black "Medar, Marti"]
[Result "1-0"]
[TimeControl "90 minutes for first 40 moves and 15 min. for the rest of the game with 30 sec. increment from move 1"]
[WhiteTitle "GM"]
[WhiteFideId "4500261"]
[BlackFideId "4501870"]
[WhiteElo "2513"]
[BlackElo "2069"]

1. e4 {

[%clk 01:30:22]

} {

[%emt 00:00:37]

} e6 {

[%clk 01:30:43]

} {

[%emt 00:00:17]

} 2. d4 {

[%clk 01:29:43]

} {

[%emt 00:01:10]

} d5 {

[%clk 01:31:05]

} {

[%emt 00:00:07]

} 3. Nc3 {

[%clk 01:25:57]

} {

[%emt 00:04:16]

} Bb4 {

[%clk 01:31:27]

} {

[%emt 00:00:08]

} 4. e5 {

[%clk 01:26:07]

} {

[%emt 00:00:20]

} Qd7 {

[%clk 01:31:02]

} {

[%emt 00:00:55]

} 5. a3 {

[%clk 01:23:07]

} {

[%emt 00:03:31]

} Bxc3+ {

[%clk 01:31:06]

} {

[%emt 00:00:25]

} 6. bxc3 {

[%clk 01:23:33]

} {

[%emt 00:00:04]

} b6 {

[%clk 01:31:29]

} {

[%emt 00:00:07]

} 7. Qg4 {

[%clk 01:23:37]

} {

[%emt 00:00:26]

} f5 {

[%clk 01:31:25]

} {

[%emt 00:00:34]

} 8. Qg3 {

[%clk 01:24:03]

} {

[%emt 00:00:05]

} Ba6 {

[%clk 01:30:36]

} {

[%emt 00:01:18]

} 9. Bxa6 {

[%clk 01:23:43]

} {

[%emt 00:00:51]

} Nxa6 {

[%clk 01:31:03]

} {

[%emt 00:00:03]

} 10. Ne2 {

[%clk 01:23:55]

} {

[%emt 00:00:17]

} Nb8 {

[%clk 01:26:58]

} {

[%emt 00:04:36]

} 11. Nf4 {

[%clk 01:22:53]

} {

[%emt 00:01:32]

} Nc6 {

[%clk 01:09:25]

} {

[%emt 00:18:03]

} 12. Nxe6 {

[%clk 01:18:56]

} {

[%emt 00:04:27]

} Qxe6 {

[%clk 01:09:40]

} {

[%emt 00:00:15]

} 13. Qxg7 {

[%clk 01:19:21]

} {

[%emt 00:00:04]

} Qg6 {

[%clk 01:09:07]

} {

[%emt 00:01:03]

} 14. Qxh8 {

[%clk 01:19:46]

} {

[%emt 00:00:06]

} Qxg2 {

[%clk 01:08:16]

} {

[%emt 00:01:21]

} 15. Rf1 {

[%clk 01:13:43]

} {

[%emt 00:06:32]

} O-O-O {

[%clk 00:52:53]

} {

[%emt 00:15:54]

} 16. Qxh7 {

[%clk 01:12:23]

} {

[%emt 00:01:49]

} Qe4+ {

[%clk 00:52:45]

} {

[%emt 00:00:37]

} 17. Be3 {

[%clk 01:10:36]

} {

[%emt 00:02:16]

} Qxc2 {

[%clk 00:49:15]

} {

[%emt 00:04:01]

} 18. Rc1 {

[%clk 01:07:18]

} {

[%emt 00:03:49]

} Qd3 {

[%clk 00:46:46]

} {

[%emt 00:02:58]

} 19. Rg1 {

[%clk 01:00:33]

} {

[%emt 00:07:15]

} Nge7 {

[%clk 00:41:20]

} {

[%emt 00:05:56]

} 20. Rg7 {

[%clk 00:58:54]

} {

[%emt 00:02:09]

} Re8 {

[%clk 00:40:22]

} {

[%emt 00:01:28]

} 21. Qh5 {

[%clk 00:50:31]

} {

[%emt 00:08:53]

} Kd7 {

[%clk 00:34:32]

} {

[%emt 00:06:20]

} 22. Bg5 {

[%clk 00:27:00]

} {

[%emt 00:24:01]

} Qe4+ {

[%clk 00:29:45]

} {

[%emt 00:05:17]

} 23. Kf1 {

[%clk 00:26:33]

} {

[%emt 00:00:57]

} Qh1+ {

[%clk 00:29:59]

} {

[%emt 00:00:16]

} 24. Ke2 {

[%clk 00:26:59]

} {

[%emt 00:00:05]

} Qe4+ {

[%clk 00:30:24]

} {

[%emt 00:00:05]

} 25. Be3 {

[%clk 00:27:07]

} {

[%emt 00:00:20]

} 1-0